bitfinex-derivatives/quotes_BTCF0:USTF0_20251217
["timestamp","ask_amount","ask_price","bid_price","bid_amount"]
[1765989488036,0.3608,86597.0,86580.0,0.3608]
[1765989488439,0.0001732,86597.0,86580.0,0.58801468]
[1765989488743,0.3658,86605.0,86580.0,0.58801468]
[1765989488744,0.3658,86605.0,86596.0,0.3608]
[1765989488932,0.3658,86605.0,86594.0,0.3608]
[1765989489353,0.3773504,86605.0,86594.0,0.3608]
[1765989489541,0.3608,86596.0,86580.0,0.0011732]
[1765989490047,0.0001732,86597.0,86569.0,0.3608]
[1765989490048,0.3608,86581.0,86569.0,0.3608]
[1765989490636,0.0115556,86566.0,86537.0,0.3608]
[1765989490834,0.19413,86551.0,86541.0,0.0115588]
[1765989491040,0.00017331,86559.0,86550.0,0.01167095]
[1765989491239,3.31e-06,86559.0,86557.0,0.3608]
[1765989491448,3.31e-06,86559.0,86558.0,0.0115566]
[1765989491848,0.3608,86588.0,86558.0,0.4]
[1765989492048,0.3608,86578.0,86559.0,0.0115564]
[1765989492352,0.3608,86578.0,86569.0,0.001]
[1765989492853,0.3608,86570.0,86565.0,0.00017331]
[1765989493150,0.0115557,86565.0,86558.0,0.002]
[1765989493343,0.3608,86561.0,86558.0,0.002]
[1765989493538,0.3608,86561.0,86550.0,0.00011335]
[1765989494354,0.3723562,86561.0,86550.0,0.00011335]
[1765989494560,0.3608,86561.0,86550.0,0.00011335]
[1765989494947,0.43752,86574.0,86550.0,0.00011335]
[1765989494948,0.01281596,86569.0,86553.0,0.3608]
[1765989495457,0.01281596,86569.0,86558.0,0.001]
[1765989495647,0.0115553,86568.0,86558.0,0.001]
[1765989495849,0.0115549,86571.0,86561.0,0.3608]
[1765989496044,0.00017331,86575.0,86561.0,0.3608]
[1765989496253,0.00017331,86575.0,86562.0,0.011556]
[1765989496447,0.3608,86586.0,86570.0,0.3608]
[1765989497353,0.3608,86596.0,86578.0,0.3608]
[1765989497559,0.36097331,86596.0,86578.0,0.36097331]
[1765989497746,0.0115522,86592.0,86578.0,0.36097331]
[1765989497947,0.0115528,86587.0,86578.0,0.36097331]
[1765989498159,0.3608,86589.0,86578.0,0.36097331]
[1765989498357,0.0115532,86584.0,86578.0,0.36097331]
[1765989498659,0.0115532,86584.0,86570.0,0.3608]
[1765989498660,0.3608,86579.0,86570.0,1e-08]
[1765989498955,0.3608,86571.0,86570.0,1e-08]
[1765989499158,0.3608,86584.0,86563.0,0.3608]
[1765989499357,0.3608,86584.0,86571.0,0.3608]
[1765989499667,0.00017331,86586.0,86579.0,0.3608]
[1765989499961,0.3608,86594.0,86583.0,0.0115531]
[1765989500156,0.3608,86594.0,86587.0,0.3608]
[1765989500663,0.011552,86593.0,86579.0,0.3608]
[1765989500861,0.3608,86586.0,86573.0,0.0115545]
[1765989501164,0.0115531,86584.0,86570.0,0.001]
[1765989501362,0.0115557,86565.0,86563.0,1e-08]
[1765989501566,0.3608,86571.0,86550.0,3.35e-06]
[1765989501567,0.0115571,86555.0,86550.0,3.35e-06]
[1765989501858,0.011558,86548.0,86542.0,5e-08]
[1765989502064,0.005,86564.0,86544.0,0.3608]
[1765989502255,0.7006,86564.0,86542.0,5e-08]
[1765989502560,0.011558,86548.0,86544.0,1e-08]
[1765989502761,0.011558,86548.0,86518.0,0.3608]
[1765989502762,0.0115593,86538.0,86518.0,0.3608]
[1765989502965,0.0115567,86558.0,86504.0,0.3608]
[1765989502966,0.3608,86520.0,86504.0,0.3608]
[1765989503261,0.00011335,86519.0,86512.0,0.0115626]
[1765989503652,0.00017331,86524.0,86518.0,0.3608]
[1765989503956,0.3608,86551.0,86530.0,0.0115603]
[1765989504164,0.3608,86551.0,86530.0,0.3723603]
[1765989504366,0.3608,86551.0,86537.0,0.3608]
[1765989504558,0.3608,86550.0,86537.0,0.3608]
[1765989504948,0.00017331,86552.0,86537.0,0.3608]
[1765989505147,0.00017331,86552.0,86546.0,0.3608]
[1765989505350,0.00017331,86552.0,86537.0,0.3608]
[1765989505562,0.001,86551.0,86544.0,0.3608]
[1765989505766,0.011558,86548.0,86535.0,0.00017331]
[1765989505959,0.0115607,86528.0,86519.0,0.19413]
[1765989506149,0.3608,86522.0,86502.0,0.3608]
[1765989506351,0.3608,86505.0,86500.0,0.005]
[1765989507760,0.3608,86505.0,86498.0,0.00231221]
[1765989508463,0.00017331,86511.0,86498.0,0.00231221]
[1765989509065,1e-08,86511.0,86504.0,0.0115637]
[1765989509266,1e-08,86511.0,86500.0,0.001]
[1765989509568,1e-08,86511.0,86494.0,0.00017331]
[1765989509569,0.3608,86503.0,86494.0,5.52e-06]
[1765989509763,0.01156291,86511.0,86501.0,0.3608]
[1765989509764,1e-08,86511.0,86501.0,0.3608]
[1765989509970,1e-08,86511.0,86494.0,5.52e-06]
[1765989510174,1e-08,86511.0,86497.0,0.3608]
[1765989510769,0.3608,86505.0,86490.0,0.3608]
[1765989511066,1e-08,86511.0,86496.0,0.3608]
[1765989511469,0.3658,86522.0,86496.0,0.3608]
[1765989511659,0.005,86522.0,86510.0,0.3608]
[1765989511858,0.011562,86518.0,86511.0,0.3608]
[1765989512064,0.005,86522.0,86511.0,0.3608]
[1765989512367,0.0115596,86536.0,86521.0,0.3608]
[1765989512556,0.3608,86532.0,86521.0,0.3608]
[1765989512760,0.3608,86532.0,86509.0,0.3608]
[1765989512761,0.3608,86532.0,86520.0,1e-08]
[1765989513065,0.3608,86521.0,86500.0,0.005]
[1765989513260,0.3608,86521.0,86505.0,0.3608]
[1765989513464,0.3608,86532.0,86505.0,0.3608]
[1765989513662,0.37385248,86532.0,86513.0,0.3608]
[1765989513859,0.00017341,86531.0,86514.0,0.00011961]
[1765989514072,0.3608,86525.0,86514.0,0.00011961]
[1765989514366,0.3608,86516.0,86500.0,0.005]
[1765989514571,0.3608,86516.0,86505.0,0.002]
[1765989514774,0.3608,86525.0,86507.0,0.3608]
[1765989515063,0.00017341,86531.0,86515.0,0.0115622]
[1765989515270,0.00017341,86531.0,86524.0,0.3608]
[1765989515469,0.3608,86527.0,86514.0,0.3618]
[1765989515670,0.3608,86527.0,86511.0,0.0115628]
[1765989515874,0.3608,86527.0,86516.0,0.0115621]
[1765989516165,0.00017341,86531.0,86518.0,0.3608]
[1765989516366,0.00017341,86531.0,86519.0,0.0115618]
[1765989517068,0.00017341,86531.0,86522.0,0.0115614]
[1765989517270,3.41e-06,86531.0,86525.0,0.011561]
[1765989517463,3.41e-06,86531.0,86518.0,0.3608]
[1765989517669,3.41e-06,86531.0,86529.0,0.0115604]
[1765989517868,0.0115584,86545.0,86529.0,0.0115604]
[1765989518373,0.3608,86544.0,86525.0,0.3608]
[1765989518559,0.3608,86544.0,86528.0,0.00017341]
[1765989518765,0.3608,86531.0,86523.0,0.0115612]
[1765989519262,0.01428097,86545.0,86508.0,0.3608]
[1765989519263,0.3608,86535.0,86522.0,0.3608]
[1765989519468,0.0115594,86538.0,86529.0,0.3608]
[1765989519773,0.01428097,86545.0,86513.0,0.3608]
[1765989519774,0.3608,86536.0,86524.0,0.3608]
[1765989520474,0.0115599,86534.0,86524.0,0.3608]
[1765989520675,0.3608,86536.0,86524.0,0.3608]
[1765989520869,0.0115589,86541.0,86525.0,0.011561]
[1765989521072,0.00017341,86542.0,86524.0,0.3608]
[1765989521073,1e-08,86542.0,86531.0,0.3608]
[1765989521963,0.3608,86536.0,86513.0,0.3608]
[1765989522272,0.3608,86536.0,86525.0,0.001]
[1765989522472,0.3608,86536.0,86523.0,0.3608]
[1765989522675,0.3608,86539.0,86522.0,0.0115613]
[1765989522972,1e-08,86542.0,86528.0,0.3608]
[1765989523174,1e-08,86542.0,86530.0,0.0115603]
[1765989523371,0.3608,86535.0,86518.0,0.3608]
[1765989523580,1e-08,86542.0,86534.0,0.3608]
[1765989523972,0.01155881,86542.0,86534.0,0.3608]
[1765989524167,1e-08,86542.0,86534.0,0.3608]
[1765989524880,1e-08,86542.0,86539.0,0.011559]
[1765989525180,1e-08,86542.0,86541.0,0.3608]
[1765989525974,0.01460336,86569.0,86541.0,0.3608]
[1765989526175,0.04605958,86573.0,86552.0,0.3608]
[1765989526373,0.0115548,86572.0,86559.0,0.3608]
[1765989526576,0.3608,86564.0,86552.0,0.3608]
[1765989526774,0.3723558,86564.0,86543.0,0.0115586]
[1765989526975,0.3608,86555.0,86545.0,0.00017331]
[1765989527183,0.00017331,86562.0,86553.0,0.3608]
[1765989527370,0.00017331,86562.0,86552.0,0.001]
[1765989527371,0.3608,86559.0,86552.0,0.001]
[1765989527679,0.0115566,86558.0,86545.0,0.00017331]
[1765989527982,0.3608,86551.0,86545.0,0.00017331]
[1765989528476,0.3608,86551.0,86545.0,1e-08]
[1765989528683,0.0115577,86550.0,86545.0,1e-08]
[1765989528875,0.3608,86551.0,86545.0,1e-08]
[1765989530275,0.001,86559.0,86545.0,0.36080001]
[1765989530473,0.0115562,86561.0,86545.0,0.36080001]
[1765989530673,0.3608,86558.0,86545.0,0.36080001]
[1765989530879,0.00017331,86562.0,86553.0,0.3608]
[1765989531085,0.0115542,86576.0,86560.0,0.3608]
[1765989531270,0.09461107,86578.0,86560.0,0.3608]
[1765989531469,0.0115544,86575.0,86560.0,0.3608]
[1765989531668,0.011555,86571.0,86560.0,0.3608]
[1765989531978,0.01446703,86580.0,86570.0,0.3608]
[1765989532285,2.89e-06,86574.0,86570.0,0.3608]
[1765989532870,2.89e-06,86574.0,86572.0,0.3608]
[1765989533078,2.89e-06,86574.0,86570.0,0.3608]
[1765989534084,0.36080289,86574.0,86563.0,0.00017331]
[1765989535084,0.3608,86567.0,86547.0,0.011558]
[1765989535277,0.3608,86557.0,86541.0,0.3608]
[1765989535478,0.3723568,86557.0,86541.0,0.3608]
[1765989535787,0.3608,86548.0,86534.0,0.3608]
[1765989536183,0.3608,86548.0,86537.0,0.0115593]
[1765989536777,0.3608,86548.0,86539.0,0.0115591]
[1765989536987,0.3608,86548.0,86541.0,0.0115588]
[1765989537182,0.3608,86548.0,86536.0,0.00017331]
[1765989537183,0.3608,86548.0,86538.0,0.0115592]
[1765989537387,0.3608,86548.0,86536.0,0.00017331]
[1765989537682,0.3608,86549.0,86536.0,0.00017331]
[1765989538692,0.3723579,86549.0,86536.0,0.00017331]
[1765989539188,0.3608,86549.0,86536.0,0.00017331]
[1765989539389,0.3608,86549.0,86536.0,0.00117331]
[1765989539782,0.3608,86549.0,86536.0,0.00017331]
[1765989540100,0.3608,86549.0,86536.0,0.00117331]
[1765989540288,0.0115579,86548.0,86536.0,0.00117331]
[1765989540480,0.3608,86549.0,86536.0,0.00117331]
[1765989540681,0.3608,86542.0,86536.0,0.00117331]
[1765989541179,0.3608,86542.0,86536.0,1e-08]
[1765989541481,0.0115605,86529.0,86528.0,6e-08]
[1765989541679,0.0115638,86505.0,86483.0,0.39158967]
[1765989541887,0.99936,86529.0,86478.0,0.0115672]
[1765989541888,0.3608,86497.0,86478.0,0.0115672]
[1765989542088,0.3608,86497.0,86483.0,0.3608]
[1765989542281,0.00017342,86496.0,86483.0,0.3608]
[1765989542594,0.3608,86507.0,86484.0,0.0115664]
[1765989542795,0.3608,86507.0,86483.0,0.3608]
[1765989542796,0.01432827,86518.0,86501.0,0.3608]
[1765989542978,0.0115616,86521.0,86502.0,0.011564]
[1765989543289,0.3608,86512.0,86493.0,0.3608]
[1765989543588,0.3608,86512.0,86483.0,0.001]
[1765989543589,0.3608,86494.0,86483.0,0.001]
[1765989543991,0.3608,86494.0,86480.0,0.01174042]
[1765989544395,0.3608,86485.0,86480.0,0.00017342]
[1765989544697,2e-08,86491.0,86484.0,0.3608]
[1765989545082,2e-08,86491.0,86488.0,0.0115659]
[1765989545587,2e-08,86491.0,86484.0,0.7331664]
[1765989545896,2e-08,86491.0,86488.0,0.0115659]
[1765989546980,0.3608,86517.0,86484.0,0.7236]
[1765989547186,0.3608,86507.0,86493.0,0.3608]
[1765989547389,0.0115634,86507.0,86493.0,0.3608]
[1765989547604,0.3608,86501.0,86493.0,0.3608]
[1765989547897,0.3608,86494.0,86488.0,0.001]
[1765989548290,0.3608,86490.0,86480.0,0.00017342]
[1765989548792,0.3608,86490.0,86480.0,2e-08]
[1765989548793,0.0115667,86482.0,86480.0,2e-08]
[1765989549108,0.3723666,86483.0,86480.0,2e-08]
[1765989549286,0.0115674,86478.0,86464.0,0.3608]
[1765989549487,0.3608,86476.0,86464.0,0.3608]
[1765989550184,0.3608,86476.0,86461.0,0.00017342]
[1765989550385,0.3608,86476.0,86458.0,0.00231328]
[1765989550386,0.3608,86476.0,86458.0,6.7e-06]
[1765989550387,0.0115686,86468.0,86458.0,6.7e-06]
[1765989550591,0.011569,86465.0,86458.0,6.7e-06]
[1765989550994,0.3608,86460.0,86451.0,0.2057076]
[1765989551388,0.3608,86460.0,86451.0,0.1941367]
[1765989551891,0.3608,86456.0,86448.0,0.0001343]
[1765989552102,0.3608,86449.0,86447.0,7.6e-07]
[1765989552283,0.0115713,86448.0,86428.0,0.0115739]
[1765989552600,0.3608,86442.0,86428.0,0.0115739]
[1765989552994,0.3608,86442.0,86427.0,0.3608]
[1765989553196,0.00014908,86441.0,86428.0,0.0115739]
[1765989553495,3.53e-06,86443.0,86439.0,0.3608]
[1765989554092,3.53e-06,86443.0,86437.0,0.3608]
[1765989554298,3.53e-06,86443.0,86435.0,0.19413]
[1765989554792,0.36080353,86443.0,86430.0,0.00017038]
[1765989555591,0.36080353,86443.0,86430.0,3.8e-07]
[1765989555592,0.0115726,86439.0,86430.0,3.8e-07]
[1765989555789,0.3608,86433.0,86430.0,3.8e-07]
[1765989556094,0.0115734,86432.0,86411.0,0.0115762]
[1765989556286,0.3608,86425.0,86411.0,0.0115762]
[1765989556488,0.3608,86442.0,86425.0,0.0115744]
[1765989556686,3.53e-06,86443.0,86404.0,0.0115772]
[1765989556687,3.53e-06,86443.0,86433.0,0.3608]
[1765989557089,3.53e-06,86443.0,86433.0,0.3723733]
[1765989557286,0.22838179,86443.0,86424.0,0.35804]
[1765989557496,0.3608,86428.0,86416.0,0.3608]
[1765989557794,0.3608,86428.0,86409.0,0.3608]
[1765989557795,0.0115744,86425.0,86409.0,0.3608]
[1765989558101,0.3608,86428.0,86418.0,4.35e-06]
[1765989558102,0.3608,86421.0,86418.0,4.35e-06]
[1765989558396,0.3608,86421.0,86394.0,0.3723785]
[1765989558397,0.0115757,86416.0,86394.0,0.3723785]
[1765989558604,0.3608,86421.0,86394.0,0.3723785]
[1765989558605,0.3608,86413.0,86394.0,0.3608]
[1765989558789,0.37548131,86413.0,86394.0,0.3608]
[1765989559099,0.3608,86413.0,86395.0,0.0615783]
[1765989559397,0.3608,86404.0,86395.0,0.05]
[1765989559601,0.0115775,86402.0,86395.0,0.052]
[1765989559792,0.0115775,86402.0,86395.0,0.01427]
[1765989559995,0.3608,86396.0,86389.0,0.00014229]
[1765989560190,0.3608,86396.0,86380.0,0.3608]
[1765989560498,0.3608,86410.0,86391.0,0.3608]
[1765989560696,0.0115783,86396.0,86381.0,0.3608]
[1765989560908,0.3608,86401.0,86381.0,0.3608]
[1765989561105,0.3608,86418.0,86400.0,0.3608]
[1765989561402,0.3608,86418.0,86366.0,0.0115822]
[1765989561403,0.011577,86406.0,86393.0,0.3608]
[1765989561707,0.58917826,86400.0,86383.0,0.3608]
[1765989561996,0.3608,86400.0,86393.0,0.3608]
[1765989562198,0.3608,86400.0,86386.0,0.0115795]
[1765989562199,4.243e-05,86399.0,86386.0,0.0115795]
[1765989562385,4.243e-05,86399.0,86391.0,0.3608]
[1765989562585,4.243e-05,86399.0,86391.0,0.3723788]
[1765989562896,2.43e-06,86399.0,86394.0,0.0115784]
[1765989563095,2.43e-06,86399.0,86391.0,0.3608]
[1765989563398,2.43e-06,86399.0,86378.0,0.37469602]
[1765989563602,2.43e-06,86399.0,86387.0,0.3608]
[1765989563906,0.011578,86398.0,86387.0,0.3608]
[1765989564201,2.43e-06,86399.0,86387.0,0.3608]
[1765989564399,0.3608,86388.0,86378.0,0.00231542]
[1765989564602,0.3608,86380.0,86378.0,0.00231542]
[1765989564796,0.36097365,86388.0,86378.0,0.00231542]
[1765989565595,0.36080243,86399.0,86386.0,0.0115796]
[1765989565902,0.36080243,86399.0,86378.0,0.59249368]
[1765989566303,0.36080243,86399.0,86386.0,0.3608]
[1765989566496,0.0144728,86419.0,86396.0,0.3608]
[1765989566799,0.00017365,86416.0,86404.0,0.3608]
[1765989567004,0.01174935,86416.0,86404.0,0.3608]
[1765989567203,0.00017365,86416.0,86404.0,0.3608]
[1765989567705,0.00017365,86416.0,86414.0,0.3608]
[1765989567999,0.01432853,86429.0,86414.0,0.3608]
[1765989568189,0.0115734,86432.0,86423.0,0.3608]
[1765989568389,0.0115734,86433.0,86423.0,0.3608]
[1765989568591,0.22837826,86433.0,86414.0,0.3608]
[1765989568795,0.3608,86431.0,86414.0,0.3608]
[1765989569001,0.3608,86431.0,86415.0,0.00017365]
[1765989569202,0.3608,86431.0,86415.0,0.01174925]
[1765989569500,0.3608,86431.0,86398.0,0.3608]
[1765989569501,0.7216,86421.0,86398.0,0.3608]
[1765989569707,0.00017365,86432.0,86370.0,0.001]
[1765989569708,0.3608,86399.0,86378.0,0.03105824]
[1765989569903,0.3608,86392.0,86382.0,0.0115801]
[1765989570105,0.43744,86420.0,86378.0,0.00231542]
[1765989570106,0.3608,86394.0,86378.0,0.00231542]
[1765989570411,0.3608,86394.0,86382.0,0.3608]
[1765989571303,0.00017365,86397.0,86382.0,0.3723801]
[1765989571606,0.00017365,86397.0,86382.0,0.3608]
[1765989572009,0.00017365,86397.0,86382.0,0.3723801]
[1765989572598,3.65e-06,86397.0,86389.0,0.3608]
[1765989572910,0.22844812,86420.0,86389.0,0.3608]
[1765989572911,0.3608,86418.0,86397.0,0.0115781]
[1765989573109,0.3608,86418.0,86404.0,0.3608]
[1765989573698,0.3608,86427.0,86412.0,0.3608]
[1765989574194,0.00017365,86428.0,86422.0,0.3608]
[1765989574693,0.002,86418.0,86411.0,0.00017365]
[1765989575409,0.3608,86425.0,86411.0,0.00017365]
[1765989575998,0.3608,86418.0,86411.0,0.00017365]
[1765989576814,0.3608,86427.0,86411.0,0.00017365]
[1765989577095,0.00017365,86428.0,86415.0,0.3608]
[1765989577296,0.0115746,86424.0,86415.0,0.3608]
[1765989577512,0.001,86425.0,86423.0,0.3608]
[1765989577811,0.3618,86425.0,86413.0,0.3608]
[1765989578000,0.3608,86425.0,86412.0,0.3608]
[1765989578195,0.001,86427.0,86412.0,0.3608]
[1765989578406,0.3608,86425.0,86413.0,0.3608]
[1765989578607,8e-08,86448.0,86422.0,0.3608]
[1765989578905,0.0115721,86442.0,86425.0,0.3723743]
[1765989579208,0.3608,86437.0,86425.0,0.0115743]
[1765989579408,0.3608,86437.0,86424.0,0.3608]
[1765989579596,0.3608,86437.0,86422.0,0.01174824]
[1765989580097,0.3608,86437.0,86422.0,0.00017354]
[1765989580302,0.3608,86437.0,86425.0,0.0115743]
[1765989580702,0.3608,86437.0,86429.0,0.0115738]
[1765989581101,0.3608,86437.0,86425.0,0.002]
[1765989581411,0.0115708,86453.0,86422.0,0.00017354]
[1765989581412,0.3608,86459.0,86435.0,0.3608]
[1765989581710,0.09412194,86458.0,86435.0,0.3608]
[1765989582010,0.011573,86436.0,86422.0,0.00017354]
[1765989582204,0.3608,86439.0,86422.0,0.00017354]
[1765989582410,0.3608,86427.0,86422.0,3.54e-06]
[1765989582908,0.3723742,86427.0,86422.0,3.54e-06]
[1765989583101,0.3608,86439.0,86422.0,3.54e-06]
[1765989583307,0.3608,86452.0,86433.0,0.3608]
[1765989583506,0.0115723,86441.0,86433.0,0.3608]
[1765989583797,0.011573,86436.0,86426.0,0.3608]
[1765989584000,0.0115737,86431.0,86426.0,0.3608]
[1765989584198,0.3608,86439.0,86422.0,3.54e-06]
[1765989584403,0.3608,86429.0,86422.0,3.54e-06]
[1765989584800,0.011574,86428.0,86422.0,3.54e-06]
[1765989585514,0.0115743,86426.0,86422.0,3.54e-06]
[1765989585709,0.0115746,86424.0,86422.0,3.54e-06]
[1765989586500,0.3618,86429.0,86422.0,3.54e-06]
[1765989586902,0.3608,86439.0,86422.0,3.54e-06]
[1765989587101,0.09412194,86458.0,86422.0,3.54e-06]
[1765989587102,0.01847676,86458.0,86438.0,0.3608]
[1765989587314,0.0115703,86456.0,86444.0,0.3608]
[1765989587510,0.0115706,86454.0,86444.0,0.3608]
[1765989587710,0.3608,86449.0,86435.0,0.3608]
[1765989587915,0.00231328,86458.0,86448.0,0.3608]
[1765989588113,0.00231328,86458.0,86455.0,0.3608]
[1765989588411,0.00231328,86458.0,86433.0,0.00017354]
[1765989588412,0.01388338,86458.0,86446.0,0.3608]
[1765989588618,0.3608,86454.0,86446.0,0.3608]
[1765989588909,0.00231328,86458.0,86442.0,0.0115721]
[1765989589112,0.00231328,86458.0,86440.0,0.22844812]
[1765989589305,0.00231328,86458.0,86441.0,0.0115722]
[1765989589706,0.3608,86453.0,86440.0,0.22844812]
[1765989589918,0.3608,86453.0,86440.0,0.24002042]
[1765989590208,0.3608,86453.0,86440.0,0.22844812]
[1765989590513,0.01546262,86465.0,86454.0,0.0115704]
[1765989590709,0.01546262,86465.0,86459.0,0.3608]
[1765989591013,0.3608,86478.0,86463.0,0.0115692]
[1765989591201,0.3608,86478.0,86460.0,0.58924812]
[1765989591202,0.3608,86478.0,86469.0,0.3608]
[1765989591397,0.3608,86486.0,86469.0,0.3608]
[1765989591608,0.36097354,86486.0,86469.0,0.36097354]
[1765989591815,0.0115668,86482.0,86469.0,0.36097354]
[1765989592111,0.36097354,86486.0,86470.0,0.22844812]
[1765989592307,0.36097354,86486.0,86469.0,0.36097354]
[1765989592514,0.36097354,86486.0,86470.0,0.22844812]
[1765989592810,0.36097354,86486.0,86477.0,0.3608]
[1765989593008,0.01173984,86486.0,86477.0,0.3608]
[1765989593613,0.00017354,86486.0,86477.0,0.3608]
[1765989593814,0.0115663,86485.0,86477.0,0.3608]
[1765989594009,0.0115668,86482.0,86470.0,0.22844812]
[1765989594204,0.3608,86479.0,86470.0,0.22844812]
[1765989594605,0.01273984,86486.0,86477.0,0.3608]
[1765989594806,0.3608,86479.0,86470.0,0.22844812]
[1765989595005,0.3608,86479.0,86469.0,0.36097354]
[1765989595207,0.3723672,86479.0,86469.0,0.00017354]
[1765989595709,0.3608,86479.0,86469.0,0.00017354]
[1765989595911,3.54e-06,86486.0,86482.0,0.0115667]
[1765989596207,5.75e-06,86498.0,86485.0,0.3608]
[1765989596409,0.3608,86497.0,86485.0,0.3608]
[1765989596607,0.3608,86497.0,86482.0,0.3608]
[1765989596808,0.3608,86497.0,86476.0,0.22844812]
[1765989597006,0.0115658,86490.0,86474.0,0.3608]
[1765989597208,0.0001115,86495.0,86474.0,0.3608]
[1765989597403,0.0001115,86495.0,86485.0,0.002]
[1765989597910,0.0115654,86492.0,86482.0,0.3608]
[1765989598113,0.0115654,86492.0,86470.0,0.22844812]
[1765989598114,0.011568,86473.0,86469.0,4e-08]
[1765989598411,0.011568,86473.0,86437.0,0.0115727]
[1765989598412,0.0115694,86462.0,86440.0,0.58924812]
[1765989598611,0.3608,86473.0,86442.0,0.0115721]
[1765989598612,0.3608,86453.0,86442.0,0.0115721]
[1765989598917,0.20499,86453.0,86442.0,0.0115721]
[1765989599118,0.20499,86453.0,86440.0,0.58924812]
[1765989599614,0.3608,86481.0,86466.0,0.0115689]
[1765989599804,0.36080575,86498.0,86475.0,0.3608]
[1765989600002,0.36080575,86498.0,86485.0,0.3608]
[1765989600221,0.01570621,86498.0,86485.0,0.3608]
[1765989600520,5.75e-06,86498.0,86493.0,0.3608]
[1765989600820,5.75e-06,86498.0,86483.0,0.00017343]
[1765989600821,0.7216,86494.0,86483.0,3e-08]
[1765989601026,0.3608,86484.0,86483.0,3e-08]
[1765989601331,0.3608,86494.0,86483.0,0.36080003]
[1765989601514,5.75e-06,86498.0,86483.0,0.36080003]
[1765989601817,0.58924812,86510.0,86483.0,0.36080003]
[1765989602002,0.3608,86498.0,86483.0,3e-08]
[1765989602207,0.3608,86498.0,86487.0,0.3608]
[1765989602414,0.3618,86498.0,86487.0,0.3608]
[1765989602623,0.001,86498.0,86489.0,0.0115657]
[1765989602816,0.3608,86508.0,86488.0,0.22844812]
[1765989603017,0.005,86522.0,86507.0,0.3608]
[1765989603232,0.00231114,86538.0,86518.0,0.7216]
[1765989603519,0.00231114,86538.0,86525.0,0.3608]
[1765989603707,0.0115608,86527.0,86518.0,0.3608]
[1765989603909,0.3608,86535.0,86521.0,0.3608]
[1765989604324,0.00231114,86538.0,86507.0,3e-08]
[1765989604325,0.3608,86522.0,86507.0,3e-08]
[1765989604513,0.3608,86508.0,86507.0,3e-08]
[1765989604921,0.3608,86508.0,86495.0,0.3608]
[1765989605122,0.0115649,86496.0,86485.0,0.3608]
[1765989605319,0.0115666,86483.0,86475.0,0.3608]
[1765989605619,0.19413,86489.0,86482.0,3e-08]
[1765989605823,0.2056959,86489.0,86482.0,3e-08]
[1765989606020,0.0115663,86486.0,86482.0,3e-08]
[1765989606320,0.19413,86489.0,86482.0,3e-08]
[1765989606625,0.3608,86485.0,86472.0,0.00013508]
[1765989606808,0.3608,86485.0,86473.0,0.0115679]
[1765989607116,0.3608,86492.0,86477.0,0.0115673]
[1765989607320,0.3608,86492.0,86480.0,0.22844812]
[1765989607523,0.00017343,86499.0,86480.0,0.22844812]
[1765989607824,0.3608,86494.0,86480.0,0.22844812]
[1765989608027,0.3608,86494.0,86479.0,0.3608]
[1765989608226,0.3608,86494.0,86482.0,0.0115667]
[1765989608423,0.3608,86494.0,86483.0,0.0115665]
[1765989608920,0.00017343,86499.0,86479.0,0.3608]
[1765989608921,0.00017343,86499.0,86487.0,0.3608]
[1765989609131,0.00017343,86499.0,86491.0,0.0115655]
[1765989609336,0.3608,86494.0,86479.0,0.3608]
[1765989609624,0.3723652,86494.0,86477.0,0.00017343]
[1765989609814,0.3608,86484.0,86477.0,0.00017343]
[1765989610014,0.3608,86494.0,86477.0,0.00017343]
[1765989610412,0.3608,86486.0,86477.0,0.00017343]
[1765989611118,0.00017343,86499.0,86477.0,0.00017343]
[1765989611119,0.01173803,86499.0,86477.0,0.00017343]
[1765989611309,0.01173803,86499.0,86470.0,0.58924812]
[1765989611310,0.3608,86479.0,86470.0,0.02907657]
[1765989611508,0.3608,86479.0,86456.0,0.41646023]
[1765989611509,0.3608,86479.0,86466.0,0.3608]
[1765989612113,0.0115673,86478.0,86466.0,0.3608]
[1765989612310,0.3608,86467.0,86456.0,0.41646023]
[1765989612615,0.3608,86460.0,86456.0,0.05566023]
[1765989613319,0.3608,86460.0,86453.0,0.00017343]
[1765989613515,0.3608,86460.0,86447.0,0.3608]
[1765989613516,0.3723697,86460.0,86447.0,0.3608]
[1765989613709,0.3723697,86460.0,86441.0,0.0115722]
[1765989613710,0.3608,86451.0,86441.0,0.0115722]
[1765989613914,0.3608,86451.0,86440.0,0.22844812]
[1765989614120,0.3608,86451.0,86440.0,0.24002042]
[1765989614314,0.3608,86461.0,86447.0,0.3608]
[1765989614515,0.3608,86461.0,86437.0,0.3608]
[1765989614516,0.3608,86450.0,86437.0,0.3608]
[1765989614719,0.3608,86440.0,86432.0,0.0115734]
[1765989615426,0.3608,86440.0,86427.0,0.00017353]
[1765989615614,0.3608,86440.0,86427.0,0.01174763]
[1765989615811,0.3608,86432.0,86427.0,0.00017353]
[1765989616010,0.3608,86440.0,86432.0,0.0115733]
[1765989616215,0.3608,86440.0,86428.0,0.3608]
[1765989616715,0.00017353,86445.0,86437.0,0.3608]
[1765989617711,0.3608,86438.0,86427.0,0.00017353]
[1765989618116,0.3608,86431.0,86420.0,0.3608]
[1765989618425,0.0115737,86430.0,86420.0,0.3608]
[1765989618722,0.3608,86421.0,86400.0,0.74312]
[1765989618929,0.3608,86421.0,86404.0,0.3608]
[1765989619223,0.3608,86412.0,86404.0,0.00017353]
[1765989619616,0.3608,86405.0,86404.0,3.53e-06]
[1765989619931,0.00017353,86421.0,86404.0,0.36080353]
[1765989620227,0.3608,86419.0,86407.0,0.3608]
[1765989620413,0.00017353,86421.0,86407.0,0.3608]
[1765989620414,3e-08,86421.0,86407.0,0.3608]
[1765989620720,0.3608,86436.0,86420.0,0.3608]
[1765989620925,0.3608,86447.0,86420.0,0.3608]
[1765989620926,0.00014413,86435.0,86420.0,0.3608]
[1765989621122,0.01171723,86435.0,86420.0,0.3608]
[1765989621324,0.01171723,86435.0,86413.0,0.011576]
[1765989621325,0.3608,86428.0,86407.0,0.3608]
[1765989621525,0.3608,86413.0,86409.0,3.53e-06]
[1765989621719,8.702e-05,86412.0,86409.0,3.53e-06]
[1765989622641,0.00017353,86426.0,86411.0,0.3608]